fUST/lending_fUST_20250619
["ID","MTS","AMOUNT","RATE_DAILY","PERIOD"]
[366543736,1750312244568,-375.46187462,0.00022957,2]
[366543737,1750312244577,-794.0,0.00022958,6]
[366543738,1750312244586,-2943.0,0.00022973,2]
[366543739,1750312244597,-794.0,0.00022986,6]
[366543740,1750312244606,-164.37568843,0.00022986,2]
[366543741,1750312244616,-679.06678716,0.00022991,2]
[366543742,1750312244625,-12507.4404958,0.00023,2]
[366543743,1750312244635,-225.17570373,0.00023012,6]
[366543744,1750312244645,-460.0,0.00023012,6]
[366543745,1750312244655,-466.01447911,0.00023012,6]
[366543746,1750312244664,-460.0,0.00023012,6]
[366543747,1750312244674,-460.0,0.00023012,6]
[366543748,1750312244683,-151.0,0.00023012,7]
[366543749,1750312244693,-460.0,0.00023012,6]
[366543750,1750312244702,-151.0,0.00023012,7]
[366543751,1750312244711,-151.0,0.00023012,7]
[366543752,1750312244721,-151.0,0.00023012,7]
[366543753,1750312244731,-584.5965411,0.00023012,6]
[366543754,1750312244740,-460.0,0.00023012,6]
[366543755,1750312244750,-821.28,0.00023012,6]
[366543756,1750312244760,-460.0,0.00023012,6]
[366543757,1750312244772,-205.76758474,0.00023012,6]
[366543758,1750312244782,-1718.46,0.00023012,6]
[366543759,1750312244791,-4299.95,0.00023012,6]
[366543760,1750312244801,-1388.55,0.00023012,6]
[366543761,1750312244811,-443.66890496,0.00023012,6]
[366543762,1750312244820,-794.0,0.00023013,6]
[366543763,1750312244829,-460.0,0.00023013,6]
[366543764,1750312244839,-214.76156487,0.00023013,6]
[366543765,1750312244848,-689.04,0.00023013,6]
[366543766,1750312244857,-460.0,0.00023013,6]
[366543767,1750312244867,-460.0,0.00023013,6]
[366543768,1750312244876,-460.0,0.00023013,6]
[366543769,1750312244885,-350.0,0.00023013,6]
[366543770,1750312244894,-607.13,0.00023013,6]
[366543771,1750312244904,-571.32,0.00023013,6]
[366543772,1750312244913,-460.0,0.00023013,6]
[366543773,1750312244923,-151.0,0.00023013,7]
[366543774,1750312244932,-1647.06,0.00023013,6]
[366543775,1750312244941,-151.0,0.00023013,7]
[366543776,1750312244951,-151.0,0.00023013,7]
[366543777,1750312244960,-460.0,0.00023013,6]
[366543778,1750312244969,-460.0,0.00023013,6]
[366543779,1750312244980,-364.9419734,0.00023013,6]
[366543780,1750312244989,-460.0,0.00023013,6]
[366543781,1750312244998,-796.26,0.00023013,6]
[366543782,1750312245008,-370.0,0.00023013,6]
[366543783,1750312245017,-192.909702,0.00023013,2]
[366543784,1750312245026,-192.909702,0.00023013,2]
[366543785,1750312245036,-460.0,0.00023013,6]
[366543786,1750312245045,-460.0,0.00023013,6]
[366543787,1750312245055,-460.0,0.00023013,6]
[366543788,1750312245064,-309.67031637,0.00023013,6]
[366543789,1750312245074,-460.0,0.00023013,6]
[366543790,1750312245084,-340.0,0.00023013,6]
[366543791,1750312245093,-523.5,0.00023013,6]
[366543792,1750312245102,-324.799476,0.00023013,7]
[366543793,1750312245111,-324.799476,0.00023013,7]
[366543794,1750312245120,-151.0,0.00023013,7]
[366543795,1750312245130,-460.0,0.00023013,6]
[366543796,1750312245139,-460.0,0.00023013,6]
[366543797,1750312245149,-2383.12,0.00023013,6]
[366543798,1750312245158,-474.25697073,0.00023013,6]
[366543799,1750312245168,-460.0,0.00023013,6]
[366543800,1750312245177,-745.6,0.00023013,6]
[366543801,1750312245279,-3257.09,0.00023013,6]
[366543802,1750312245292,-575.69,0.00023013,6]
[366543803,1750312245301,-158.013251,0.00023013,7]
[366543804,1750312245310,-460.0,0.00023013,6]
[366543805,1750312245320,-3321.22,0.00023013,6]
[366543806,1750312245330,-577.52,0.00023013,6]
[366543807,1750312245340,-1277.97,0.00023013,6]
[366543808,1750312245349,-460.0,0.00023013,6]
[366543809,1750312245359,-460.0,0.00023013,6]
[366543810,1750312245368,-1181.86,0.00023013,6]
[366543811,1750312245378,-4070.67,0.00023013,6]
[366543812,1750312245388,-482.75,0.00023013,6]
[366543813,1750312245397,-460.0,0.00023013,6]
[366543814,1750312245407,-460.0,0.00023013,6]
[366543815,1750312245416,-810.76,0.00023013,6]
[366543816,1750312245426,-538.06,0.00023013,6]
[366543817,1750312245435,-937.39,0.00023013,6]
[366543818,1750312245444,-460.0,0.00023013,6]
[366543819,1750312245453,-485.74,0.00023013,6]
[366543820,1750312245463,-460.0,0.00023013,6]
[366543821,1750312245473,-460.0,0.00023013,6]
[366543822,1750312245482,-460.0,0.00023013,6]
[366543823,1750312245492,-493.64,0.00023013,6]
[366543824,1750312245501,-460.0,0.00023013,6]
[366543825,1750312245511,-460.0,0.00023013,6]
[366543826,1750312245520,-725.2,0.00023013,6]
[366543827,1750312245530,-514.98,0.00023013,6]
[366543828,1750312245540,-969.54,0.00023013,6]
[366543829,1750312245549,-460.0,0.00023013,6]
[366543830,1750312245558,-460.0,0.00023013,6]
[366543831,1750312245568,-1449.41,0.00023013,6]
[366543832,1750312245577,-460.0,0.00023013,6]
[366543833,1750312245587,-460.0,0.00023013,6]
[366543834,1750312245596,-460.0,0.00023013,6]
[366543835,1750312245606,-1450.16,0.00023013,6]
[366543836,1750312245616,-460.0,0.00023013,6]
[366543837,1750312245625,-460.0,0.00023013,6]
[366543838,1750312245635,-511.82,0.00023013,6]
[366543839,1750312245646,-2327.61,0.00023013,6]
[366543840,1750312245655,-702.0,0.00023013,6]
[366543841,1750312245665,-2846.52,0.00023013,6]
[366543842,1750312245675,-1736.04,0.00023013,6]
[366543843,1750312245684,-750.56,0.00023013,6]
[366543844,1750312245693,-2294.54,0.00023013,6]
[366543845,1750312245702,-460.0,0.00023013,6]
[366543846,1750312245712,-300.0,0.00023013,2]
[366543847,1750312245721,-532.48,0.00023013,6]
[366543848,1750312245731,-445.39,0.00023013,6]
[366543849,1750312245740,-553.56,0.00023013,6]
[366543851,1750312245749,-460.0,0.00023013,6]
[366543853,1750312245759,-794.0,0.0002304,6]
[366543855,1750312245769,-794.0,0.00023068,6]
[366543856,1750312245778,-529.64980126,0.00023068,2]
[366543858,1750312245788,-815.38594548,0.00023095,6]
[366543860,1750312245797,-164.37568843,0.00023096,2]
[366543861,1750312245806,-42965.74268316,0.000231,2]
[366543863,1750312245816,-253.238149,0.00023167,7]
[366543865,1750312245826,-253.238149,0.00023167,7]
[366543866,1750312245836,-723.0,0.00023168,2]
[366543868,1750312245846,-168.47383333,0.00023187,2]
[366543870,1750312245856,-151.0,0.000232,8]
[366543872,1750312245865,-164.37568843,0.00023205,2]
[366543874,1750312245875,-233.041975,0.00023257,2]
[366543875,1750312245884,-514.50157117,0.00023268,2]
[366543877,1750312245893,-1500.0,0.00023268,2]
[366543879,1750312245903,-929.20836167,0.00023268,2]
[366543881,1750312245912,-1800.0,0.00023268,2]
[366543884,1750312245922,-215.0738,0.00023284,2]
[366543886,1750312245931,-370.0,0.00023286,6]
[366543887,1750312245940,-460.0,0.00023286,6]
[366543889,1750312245950,-460.0,0.00023286,6]
[366543890,1750312245959,-821.28,0.00023286,6]
[366543891,1750312245969,-460.0,0.00023286,6]
[366543892,1750312245978,-1718.46,0.00023286,6]
[366543893,1750312245988,-4299.95,0.00023286,6]
[366543895,1750312245997,-1388.55,0.00023286,6]
[366543897,1750312246007,-15646.79904592,0.00023287,2]
[366543900,1750312246016,-36149.88176151,0.00023287,2]
[366543903,1750312246025,-354.384871,0.00023287,7]
[366543905,1750312246034,-354.384871,0.00023287,7]
[366543907,1750312246044,-151.0,0.00023287,7]
[366543909,1750312246053,-151.0,0.00023287,7]
[366543911,1750312246063,-460.0,0.00023287,6]
[366543913,1750312246073,-689.04,0.00023287,6]
[366543914,1750312246083,-341.56654318,0.00023287,6]
[366543915,1750312246093,-607.13,0.00023287,6]
[366543916,1750312246102,-571.32,0.00023287,6]
[366543917,1750312246114,-460.0,0.00023287,6]
[366543918,1750312246123,-1647.06,0.00023287,6]
[366543920,1750312246132,-156.42228897,0.00023287,6]
[366543922,1750312246142,-460.0,0.00023287,6]
[366543924,1750312246151,-460.0,0.00023287,6]
[366543925,1750312246160,-796.26,0.00023287,6]
[366543926,1750312246169,-531.506602,0.00023287,7]
[366543927,1750312246179,-531.506602,0.00023287,7]
[366543928,1750312246188,-520.65944708,0.00023287,6]
[366543929,1750312246197,-460.0,0.00023287,6]
[366543930,1750312246206,-460.0,0.00023287,6]
[366543931,1750312246216,-460.0,0.00023287,6]
[366543932,1750312246225,-523.5,0.00023287,6]
[366543933,1750312246235,-460.0,0.00023287,6]
[366543934,1750312246247,-460.0,0.00023287,6]
[366543935,1750312246256,-2383.12,0.00023287,6]
[366543936,1750312246269,-460.0,0.00023287,6]
[366543937,1750312246279,-745.6,0.00023287,6]
[366543938,1750312246289,-3257.09,0.00023287,6]
[366543939,1750312246298,-151.0,0.00023287,7]
[366543940,1750312246308,-575.69,0.00023287,6]
[366543941,1750312246318,-460.0,0.00023287,6]
[366543942,1750312246327,-3321.22,0.00023287,6]
[366543943,1750312246336,-577.52,0.00023287,6]
[366543944,1750312246346,-151.0,0.00023287,7]
[366543946,1750312246355,-1277.97,0.00023287,6]
[366543947,1750312246364,-151.0,0.00023287,7]
[366543949,1750312246373,-151.0,0.00023287,7]
[366543950,1750312246382,-460.0,0.00023287,6]
[366543951,1750312246394,-460.0,0.00023287,6]
[366543952,1750312246404,-1181.86,0.00023287,6]
[366543953,1750312246412,-4070.67,0.00023287,6]
[366543954,1750312246421,-151.0,0.00023287,7]
[366543955,1750312246430,-482.75,0.00023287,6]
[366543956,1750312246440,-460.0,0.00023287,6]
[366543957,1750312246450,-151.0,0.00023287,7]
[366543958,1750312246459,-460.0,0.00023287,6]
[366543959,1750312246468,-810.76,0.00023287,6]
[366543960,1750312246478,-538.06,0.00023287,6]
[366543961,1750312246487,-937.39,0.00023287,6]
[366543962,1750312246496,-460.0,0.00023287,6]
[366543963,1750312246505,-485.74,0.00023287,6]
[366543964,1750312246515,-460.0,0.00023287,6]
[366543965,1750312246524,-460.0,0.00023287,6]
[366543966,1750312246533,-151.0,0.00023287,7]
[366543967,1750312246544,-386.61908509,0.00023287,6]
[366543968,1750312246554,-493.64,0.00023287,6]
[366543969,1750312246563,-151.0,0.00023287,7]
[366543970,1750312246572,-325.00146527,0.00023287,6]
[366543971,1750312246581,-460.0,0.00023287,6]
[366543972,1750312246590,-725.2,0.00023287,6]
[366543973,1750312246600,-514.98,0.00023287,6]
[366543974,1750312246610,-969.54,0.00023287,6]
[366543975,1750312246619,-460.0,0.00023287,6]
[366543976,1750312246629,-460.0,0.00023287,6]
[366543977,1750312246638,-1449.41,0.00023287,6]
[366543978,1750312246648,-460.0,0.00023287,6]
[366543979,1750312246657,-460.0,0.00023287,6]
[366543980,1750312246667,-1450.16,0.00023287,6]
[366543981,1750312246676,-151.0,0.00023287,7]
[366543982,1750312246686,-460.0,0.00023287,6]
[366543983,1750312246696,-460.0,0.00023287,6]
[366543984,1750312246705,-511.82,0.00023287,6]
[366543985,1750312246715,-2327.61,0.00023287,6]
[366543986,1750312246724,-702.0,0.00023287,6]
[366543987,1750312246734,-2846.52,0.00023287,6]
[366543988,1750312246744,-1736.04,0.00023287,6]
[366543989,1750312246755,-750.56,0.00023287,6]
[366543990,1750312246764,-2294.54,0.00023287,6]
[366543991,1750312246774,-380.0,0.00023287,6]
[366543992,1750312246783,-300.0,0.00023287,2]
[366543993,1750312246792,-691.996271,0.00023287,7]
[366543994,1750312246802,-532.48,0.00023287,6]
[366543995,1750312246811,-553.56,0.00023287,6]
[366543996,1750312246821,-691.996271,0.00023287,7]
[366543997,1750312246831,-460.0,0.00023287,6]
[366543998,1750312246840,-854.5,0.000233,7]
[366543999,1750312246850,-679.06678716,0.000233,2]
[366544000,1750312246860,-497.18580082,0.00023302,2]
[366544001,1750312246869,-164.37568843,0.00023315,2]
[366544002,1750312246878,-65344.67039783,0.00023334,2]
[366544003,1750312246887,-151.0,0.00023334,7]
[366544004,1750312246897,-265.966829,0.00023334,7]
[366544005,1750312246906,-720.49820065,0.00023334,3]
[366544006,1750312246916,-292.10195508,0.00023334,3]
[366544007,1750312246925,-151.0,0.00023334,7]
[366544008,1750312246935,-151.0,0.00023334,7]
[366544009,1750312246944,-276.660872,0.00023334,7]
[366544010,1750312246954,-276.660872,0.00023334,7]
[366544011,1750312246963,-317.0,0.00023334,3]
[366544012,1750312246973,-118593.08775312,0.0002335,2]
[366544013,1750312246982,-151.0,0.0002335,7]
[366544014,1750312246991,-151.0,0.0002335,7]
[366544015,1750312247000,-151.0,0.0002335,7]
[366544016,1750312247010,-816.953428,0.0002335,7]
[366544017,1750312247019,-816.953428,0.0002335,7]
[366544018,1750312247028,-151.0,0.0002335,7]
[366544019,1750312247038,-151.0,0.0002335,7]
[366544020,1750312247048,-656.903196,0.0002335,7]
[366544021,1750312247057,-656.903196,0.0002335,7]
[366544022,1750312247067,-192.909702,0.0002335,2]
[366544023,1750312247076,-294.749345,0.0002335,7]
[366544024,1750312247086,-192.909702,0.0002335,2]
[366544025,1750312247095,-531.506602,0.0002335,7]
[366544026,1750312247105,-531.506602,0.0002335,7]
[366544027,1750312247114,-476.094147,0.0002335,7]
[366544028,1750312247124,-476.094147,0.0002335,7]
[366544029,1750312247133,-151.0,0.0002335,7]
[366544030,1750312247142,-151.0,0.0002335,7]
[366544031,1750312247151,-324.799476,0.0002335,7]
[366544032,1750312247161,-324.799476,0.0002335,7]
[366544033,1750312247170,-151.0,0.0002335,7]
[366544034,1750312247179,-151.0,0.0002335,7]
[366544035,1750312247188,-440.846235,0.0002335,7]
[366544036,1750312247198,-440.846235,0.0002335,7]
[366544037,1750312247207,-151.0,0.0002335,7]
[366544038,1750312247216,-151.0,0.0002335,7]
[366544039,1750312247225,-151.0,0.0002335,7]
[366544040,1750312247235,-156.657515,0.0002335,7]
[366544041,1750312247245,-154.225128,0.0002335,7]
[366544042,1750312247254,-151.0,0.0002335,7]
[366544043,1750312247263,-232.181356,0.0002335,7]
[366544044,1750312247272,-151.0,0.0002335,7]
[366544045,1750312247281,-691.996271,0.0002335,7]
[366544046,1750312247291,-691.996271,0.0002335,7]
[366544047,1750312247300,-500.0,0.00023356,2]
[366544048,1750312247309,-1042.59,0.00023368,2]
[366544049,1750312247318,-285.0,0.00023372,2]
[366544050,1750312247421,-477.72948211,0.00023373,2]
[366544051,1750312247430,-500.0,0.00023373,2]
[366544052,1750312247440,-500.0,0.00023373,2]
[366544053,1750312247449,-502.45613975,0.00023373,2]
[366544054,1750312247459,-276.660872,0.00023373,7]
[366544055,1750312247468,-276.660872,0.00023373,7]
[366544056,1750312247477,-160.0,0.00023391,3]
[366544057,1750312247486,-151.0,0.00023398,7]
[366544058,1750312247496,-151.0,0.00023398,7]
[366544059,1750312247505,-151.0,0.00023398,7]
[366544060,1750312247515,-151.0,0.000234,10]
[366544061,1750312247525,-50912.94,0.000234,2]
[366544062,1750312247536,-350.59154,0.000234,7]
[366544063,1750312247546,-151.0,0.000234,7]
[366544064,1750312247556,-2169.979251,0.00023422,3]
[366544065,1750312247565,-164.37568843,0.00023425,2]
[366544066,1750312247574,-50000.0,0.0002343,30]
[366544067,1750312247584,-10819.53250238,0.00023463,2]
[366544068,1750312247593,-151.0,0.00023463,7]
[366544069,1750312247603,-260.601745,0.00023463,7]
[366544070,1750312247612,-260.601745,0.00023463,7]
[366544071,1750312247621,-151.0,0.00023463,7]
[366544072,1750312247631,-151.0,0.00023463,7]
[366544073,1750312247640,-192.909702,0.00023463,2]
[366544074,1750312247650,-192.909702,0.00023463,2]
[366544075,1750312247659,-531.506602,0.00023463,7]
[366544076,1750312247668,-531.506602,0.00023463,7]
[366544077,1750312247678,-52020.46520234,0.00023463,2]
[366544078,1750312247688,-324.799476,0.00023463,7]
[366544079,1750312247697,-324.799476,0.00023463,7]
[366544080,1750312247707,-277.0,0.00023468,2]
[366544081,1750312247717,-152.990097,0.00023478,7]
[366544082,1750312247726,-2699.25886817,0.00023495,2]
[366544083,1750312247736,-2593.0,0.000235,2]
[366544084,1750312247746,-2593.0,0.000235,2]
[366544085,1750312247755,-2593.0,0.000235,2]
[366544086,1750312247765,-2593.0,0.000235,2]
[366544087,1750312247775,-2593.0,0.000235,2]
[366544088,1750312247784,-2593.0,0.000235,2]
[366544089,1750312247794,-2593.0,0.000235,2]
[366544090,1750312247804,-2593.0,0.000235,2]
[366544091,1750312247814,-2593.0,0.000235,2]
[366544092,1750312247823,-2593.0,0.000235,2]
[366544093,1750312247834,-3000.0,0.000235,2]
[366544094,1750312247844,-2576.01407434,0.000235,2]
[366544095,1750312247903,-166.36879864,0.00021639,2]
[366544096,1750312247913,-423.98592566,0.000235,2]
[366544097,1750312247922,-500.0,0.000235,2]
[366544098,1750312247932,-15.83636822,0.000235,15]
[366544099,1750312248214,-460.0,0.00021917,6]
[366544100,1750312248224,-460.0,0.00021917,6]
[366544101,1750312248234,-460.0,0.00021917,6]
[366544102,1750312248247,-168.04416856,0.00021917,6]
[366544103,1750312428176,506.14108,0.00025187,120]
[366544106,1750312529239,500.0,0.000245,120]
[366544107,1750312547491,500.0,0.000245,120]
[366544109,1750312666039,2729.10888895,0.000191,2]
[366544110,1750313083098,1000.76,0.00022,30]
[366544155,1750313432500,-2203.43246263,0.00019159,2]
[366544157,1750313432510,-186.43358,0.00019438,2]
[366544159,1750313432519,-415.9010358,0.00019439,2]
[366544161,1750313432529,-225.55,0.00019598,2]
[366544163,1750313432538,-300.0,0.00020436,2]
[366544165,1750313432547,-519.77443394,0.00020437,2]
[366544167,1750313432557,-300.0,0.00020438,2]
[366544168,1750313432566,-500.0,0.0002044,2]
[366544171,1750313432575,-500.0,0.0002044,2]
[366544173,1750313432585,-500.0,0.0002044,2]
[366544174,1750313432595,-500.0,0.0002044,2]
[366544177,1750313432604,-500.0,0.0002044,2]
[366544178,1750313432614,-500.0,0.0002044,2]
[366544180,1750313432623,-500.0,0.0002044,2]
[366544182,1750313432632,-500.0,0.0002044,2]
[366544184,1750313432641,-500.0,0.0002044,2]
[366544186,1750313432651,-500.0,0.0002044,2]
[366544187,1750313432662,-500.0,0.0002044,2]
[366544188,1750313432672,-490.7303412,0.0002044,2]
[366544189,1750313432681,-500.0,0.0002044,2]
[366544190,1750313432690,-24900.0,0.00020441,2]
[366544191,1750313432700,-451.1,0.00020531,2]
[366544192,1750313432709,-188.177,0.00020647,2]
[366544193,1750313432719,-763.0026678,0.00020688,2]
[366544194,1750313432728,-500.0,0.00020714,2]
[366544195,1750313432738,-260.51832066,0.00020988,2]
[366544196,1750313432747,-500.0,0.00021164,2]
[366544197,1750313432757,-676.64,0.00021465,2]
[366544198,1750313432766,-160.0,0.00021696,2]
[366544199,1750313432776,-12544.68530873,0.00021696,2]
[366544200,1750313432786,-213.47708638,0.00021696,2]
[366544201,1750313432795,-160.0,0.00021696,2]
[366544202,1750313432804,-230.0259007,0.00021696,2]
[366544203,1750313432814,-160.0,0.00021696,2]
[366544204,1750313432823,-424.78309573,0.00021696,2]
[366544205,1750313432833,-845.93775772,0.00021696,2]
[366544206,1750313432842,-1004.97744232,0.00021748,2]
[366544207,1750313432852,-228.54354034,0.0002181,13]
[366544208,1750313432862,-576.04,0.00021907,10]
[366544209,1750313432871,-1005.65,0.00021907,10]
[366544210,1750313432880,-609.87,0.00021907,3]
[366544211,1750313432890,-838.04,0.00021907,10]
[366544212,1750313432901,-410.0,0.00021917,6]
[366544213,1750313432910,-460.0,0.00021917,6]
[366544214,1750313432920,-460.0,0.00021917,6]
[366544215,1750313432929,-169.92202262,0.00021917,6]
[366544216,1750313432938,-1374.37,0.00021917,6]
[366544217,1750313432948,-460.0,0.00021917,6]
[366544218,1750313432958,-460.0,0.00021917,6]
[366544219,1750313432982,-324.36017514,0.00021917,6]
[366544220,1750313433004,-613.57,0.00021917,6]
[366544221,1750313433025,-460.0,0.00021917,6]
[366544222,1750313433048,-460.0,0.00021917,6]
[366544223,1750313433088,-460.0,0.00021917,6]
[366544224,1750313433133,-460.0,0.00021917,6]
[366544225,1750313433170,-460.0,0.00021917,6]
[366544226,1750313433205,-460.0,0.00021917,6]
[366544227,1750313433227,-460.0,0.00021917,6]
[366544228,1750313433250,-539.30162044,0.00021917,6]
[366544229,1750313433269,-529.49,0.00021917,6]
[366544230,1750313433279,-480.24,0.00021917,6]
[366544231,1750313433288,-460.0,0.00021917,6]
[366544232,1750313433298,-460.0,0.00021917,6]
[366544233,1750313433309,-1544.68,0.00021917,6]
[366544234,1750313433318,-460.0,0.00021917,6]
[366544235,1750313433328,-364.9419734,0.00021917,6]
[366544236,1750313433337,-460.0,0.00021917,6]
[366544237,1750313433347,-460.0,0.00021917,6]
[366544238,1750313433357,-460.0,0.00021917,6]
[366544239,1750313433367,-663.55,0.00021917,6]
[366544240,1750313433376,-460.0,0.00021917,6]
[366544241,1750313433386,-370.0,0.00021917,6]
[366544242,1750313433395,-460.0,0.00021917,6]
[366544243,1750313433405,-225.17570373,0.00021917,6]
[366544244,1750313433414,-739.05,0.00021917,6]
[366544245,1750313433424,-460.0,0.00021917,6]
[366544246,1750313433434,-460.0,0.00021917,6]
[366544247,1750313433443,-460.0,0.00021917,6]
[366544248,1750313433453,-460.0,0.00021917,6]
[366544249,1750313433462,-460.0,0.00021917,6]
[366544250,1750313433472,-1503.65,0.00021917,6]
[366544251,1750313433481,-340.0,0.00021917,6]
[366544252,1750313433490,-500.0,0.00021917,6]
[366544253,1750313433499,-2490.71,0.00021917,6]
[366544254,1750313433509,-500.0,0.00021917,6]
[366544255,1750313433519,-541.61141879,0.00021917,6]
[366544256,1750313433528,-460.0,0.00021917,6]
[366544257,1750313433538,-475.75,0.00021917,6]
[366544258,1750313433547,-3762.46,0.00021917,6]
[366544259,1750313433559,-460.0,0.00021917,6]
[366544260,1750313433568,-460.0,0.00021917,6]
[366544261,1750313433578,-474.25697073,0.00021917,6]
[366544262,1750313433588,-2184.6,0.00021917,6]
[366544263,1750313433597,-460.0,0.00021917,6]
[366544264,1750313433607,-460.0,0.00021917,6]
[366544265,1750313433616,-380.98081843,0.00021917,6]
[366544266,1750313433626,-3392.22,0.00021917,6]
[366544267,1750313433636,-479.75,0.00021917,6]
[366544268,1750313433646,-2831.53,0.00021917,6]
[366544269,1750313433656,-460.0,0.00021917,6]
[366544270,1750313433671,-460.0,0.00021917,6]
[366544271,1750313433680,-717.74,0.00021917,6]
[366544272,1750313433689,-1341.22,0.00021917,6]
[366544273,1750313433699,-481.27,0.00021917,6]
[366544274,1750313433709,-370.23477845,0.00021917,6]
[366544275,1750313433718,-2948.33,0.00021917,6]
[366544276,1750313433728,-432.10048665,0.00021917,6]
[366544277,1750313433737,-1088.05,0.00021917,6]
[366544278,1750313433747,-460.0,0.00021917,6]
[366544279,1750313433757,-460.0,0.00021917,6]
[366544280,1750313433766,-984.88,0.00021917,6]
[366544281,1750313433776,-460.0,0.00021917,6]
[366544282,1750313433785,-460.0,0.00021917,6]
[366544283,1750313433795,-654.11,0.00021917,6]
[366544284,1750313433805,-460.0,0.00021917,6]
[366544285,1750313433814,-460.0,0.00021917,6]
[366544286,1750313433824,-493.65,0.00021917,6]
[366544287,1750313433833,-460.0,0.00021917,6]
[366544288,1750313433843,-460.0,0.00021917,6]
[366544289,1750313433852,-1342.88,0.00021917,6]
[366544290,1750313433862,-460.0,0.00021917,6]
[366544291,1750313433872,-781.16,0.00021917,6]
[366544292,1750313433882,-460.0,0.00021917,6]
[366544293,1750313433892,-460.0,0.00021917,6]
[366544294,1750313433902,-848.35,0.00021917,6]
[366544295,1750313433912,-460.0,0.00021917,6]
[366544296,1750313433922,-443.66890496,0.00021917,6]
[366544297,1750313433932,-460.0,0.00021917,6]
[366544298,1750313433941,-653.72,0.00021917,6]
[366544299,1750313433950,-460.0,0.00021917,6]
[366544300,1750313433960,-460.0,0.00021917,6]
[366544301,1750313433969,-470.8,0.00021917,6]
[366544302,1750313433978,-460.0,0.00021917,6]
[366544303,1750313433988,-150.16568344,0.00021917,6]
[366544304,1750313433997,-460.0,0.00021917,6]
[366544305,1750313434006,-420.0,0.00021917,6]
[366544306,1750313434016,-460.0,0.00021917,6]
[366544307,1750313434025,-466.01447911,0.00021917,6]
[366544308,1750313434034,-460.0,0.00021917,6]
[366544309,1750313434044,-460.0,0.00021917,6]
[366544310,1750313434054,-300.0,0.00021917,2]
[366544311,1750313434063,-460.0,0.00021917,6]
[366544312,1750313434072,-2007.73,0.00021917,6]
[366544313,1750313434082,-460.0,0.00021917,6]
[366544314,1750313434092,-169.18391357,0.00021917,6]
[366544315,1750313434101,-1300.41,0.00021917,6]
[366544316,1750313434110,-460.0,0.00021917,6]
[366544317,1750313434120,-467.01,0.00021917,6]
[366544318,1750313434129,-1268.89,0.00021917,6]
[366544319,1750313434138,-450.58499323,0.00021917,6]
[366544320,1750313434147,-2036.66,0.00021917,6]
[366544321,1750313434157,-460.0,0.00021917,6]
[366544322,1750313434166,-460.0,0.00021917,6]
[366544323,1750313434175,-2517.15,0.00021917,6]
[366544324,1750313434185,-460.0,0.00021917,6]
[366544325,1750313434194,-327.91429523,0.00021917,6]
[366544326,1750313434203,-460.0,0.00021917,6]
[366544327,1750313434213,-460.0,0.00021917,6]
[366544328,1750313434222,-614.25,0.00021917,6]
[366544329,1750313434232,-462.59,0.00021917,6]
[366544330,1750313434241,-656.74,0.00021917,6]
[366544331,1750313434251,-460.0,0.00021917,6]